bitfinex/quotes_SOLUSD_20250118
["timestamp","ask_amount","ask_price","bid_price","bid_amount"]
[1737222641669,23.776884,252.3,252.21,31.93224026]
[1737222642070,31.93224026,252.31,252.21,31.93224026]
[1737222642275,31.93224026,252.46,252.26,31.93224026]
[1737222642276,31.93224026,252.36,252.26,31.93224026]
[1737222642455,31.93224026,252.32,252.22,0.59466396]
[1737222642656,31.93224026,252.32,252.21,31.93224026]
[1737222642957,23.776884,252.29,252.19,31.96224026]
[1737222643360,23.776884,252.29,252.21,31.93224026]
[1737222643565,31.93224026,252.32,252.21,31.93224026]
[1737222643767,23.776884,252.31,252.21,31.93224026]
[1737222643964,31.93224026,252.32,252.21,31.93224026]
[1737222644470,31.93224026,252.39,252.3,31.93224026]
[1737222644778,0.063,252.9,252.32,31.93224026]
[1737222644779,31.93224026,252.43,252.32,31.93224026]
[1737222644956,9.9001,252.53,252.2,31.93224026]
[1737222644957,38.71224026,252.45,252.36,31.93224026]
[1737222645270,31.93224026,252.45,252.36,31.93224026]
[1737222645474,31.93224026,252.49,252.4,31.93224026]
[1737222645977,31.93224026,252.49,252.38,31.93224026]
[1737222646177,3.9593,252.57,252.39,0.59426101]
[1737222646473,31.93224026,252.55,252.45,31.93224026]
[1737222646685,31.93224026,252.49,252.39,31.93224026]
[1737222646980,23.776884,252.42,252.33,31.93224026]
[1737222647681,23.776884,252.36,252.27,31.93224026]
[1737222647981,31.93224026,252.28,252.21,0.03]
[1737222648354,31.93224026,252.28,252.19,31.96224026]
[1737222648776,31.93224026,252.24,252.19,0.03]
[1737222649077,31.93224026,252.33,252.19,0.03]
[1737222649078,31.93224026,252.22,252.19,0.03]
[1737222649465,23.776884,252.21,252.19,0.03]
[1737222649663,55.70912426,252.2,252.19,0.03]
[1737222649863,23.776884,252.19,252.14,0.03]
[1737222650075,31.93224026,252.15,252.14,0.03]
[1737222650278,55.70912426,252.15,252.14,0.03]
[1737222650461,31.93224026,252.15,252.14,0.03]
[1737222650877,55.70912426,252.15,252.14,0.03]
[1737222651266,31.93224026,252.15,252.14,0.03]
[1737222651465,31.93224026,252.21,252.14,0.03]
[1737222651663,31.93224026,252.27,252.17,31.93224026]
[1737222651859,31.93224026,252.29,252.19,31.93224026]
[1737222652077,31.93224026,252.27,252.17,31.93224026]
[1737222652279,31.93224026,252.25,252.15,31.93224026]
[1737222652782,31.93224026,252.23,252.14,0.03]
[1737222653157,3.9635,252.31,252.14,0.03]
[1737222653158,31.93224026,252.21,252.14,0.03]
[1737222653385,31.93224026,252.15,252.14,0.03]
[1737222654078,55.70912426,252.15,252.14,0.03]
[1737222655665,55.70912426,252.15,251.97,31.93224026]
[1737222655666,20.0,252.11,251.97,31.93224026]
[1737222655860,23.776884,252.03,251.95,31.96224026]
[1737222656065,31.93224026,252.06,251.95,31.96224026]
[1737222656261,9.9109,252.25,252.05,31.93224026]
[1737222656468,6.78,252.26,252.13,0.03]
[1737222656469,31.93224026,252.19,252.13,0.03]
[1737222656669,31.93224026,252.21,252.13,0.03]
[1737222658090,31.93224026,252.18,252.13,0.03]
[1737222658271,31.93224026,252.22,252.13,0.03]
[1737222659387,23.776884,252.21,252.13,31.96224026]
[1737222659588,31.93224026,252.2,252.13,0.03]
[1737222659964,31.93224026,252.18,252.13,0.03]
[1737222660170,31.93224026,252.2,252.13,0.03]
[1737222660685,31.93224026,252.3,252.19,31.93224026]
[1737222661271,31.93224026,252.28,252.17,31.93224026]
[1737222661486,31.93224026,252.3,252.19,31.93224026]
[1737222662270,31.93224026,252.32,252.21,31.93224026]
[1737222662480,31.93224026,252.32,252.23,31.93224026]
[1737222662968,31.93224026,252.34,252.23,31.93224026]
[1737222663264,31.93224026,252.4,252.29,31.93224026]
[1737222663589,31.84003496,252.55,252.24,0.59460383]
[1737222663590,31.93224026,252.44,252.33,31.93224026]
[1737222663798,12.7753,252.55,252.37,31.93224026]
[1737222663799,31.93224026,252.46,252.37,31.93224026]
[1737222664168,31.93224026,252.48,252.37,31.93224026]
[1737222664590,31.93224026,252.45,252.35,31.93224026]
[1737222665093,31.93224026,252.47,252.37,31.93224026]
[1737222665465,31.93224026,252.51,252.41,31.93224026]
[1737222665666,0.063,252.55,252.49,31.93224026]
[1737222665871,0.063,252.55,252.53,31.93224026]
[1737222666406,0.063,252.55,252.49,31.93224026]
[1737222666590,0.063,252.55,252.51,31.93224026]
[1737222666792,0.063,252.55,252.53,31.93224026]
[1737222667378,0.063,252.55,252.54,0.59390209]
[1737222667788,0.063,252.55,252.54,24.37078609]
[1737222667992,31.93224026,252.79,252.55,23.776884]
[1737222668172,31.93224026,252.83,252.73,31.93224026]
[1737222668374,31.93224026,252.87,252.77,31.93224026]
[1737222668774,31.93224026,252.85,252.75,31.93224026]
[1737222668974,31.99524026,252.9,252.8,31.93224026]
[1737222669279,31.93224026,252.86,252.76,31.93224026]
[1737222669578,31.99524026,252.9,252.8,31.93224026]
[1737222670570,0.063,252.9,252.81,0.59327369]
[1737222670771,0.063,252.9,252.82,23.776884]
[1737222670993,31.93224026,253.15,252.9,23.776884]
[1737222671268,6.04518619,253.19,253.11,31.93224026]
[1737222671474,6.04518619,253.19,253.13,31.93224026]
[1737222671670,31.93224026,253.15,253.0,0.59265409]
[1737222671889,31.93224026,253.11,252.99,31.93224026]
[1737222672190,31.93224026,253.09,252.99,31.93224026]
[1737222672575,31.93224026,253.07,252.97,31.93224026]
[1737222673191,23.776884,253.04,252.95,31.93224026]
[1737222673389,31.93224026,253.07,252.97,31.93224026]
[1737222673595,31.93224026,253.05,252.95,31.93224026]
[1737222673991,23.776884,253.04,252.95,31.93224026]
[1737222674197,31.93224026,253.0,252.91,15.808561]
[1737222674400,23.776884,252.91,252.8,31.93224026]
[1737222674608,31.93224026,252.9,252.8,31.93224026]
[1737222675001,31.93224026,252.92,252.82,31.93224026]
[1737222675205,31.93224026,252.94,252.84,31.93224026]
[1737222675506,23.776884,252.93,252.84,31.93224026]
[1737222675695,31.93224026,252.9,252.8,31.93224026]
[1737222675891,31.93224026,252.88,252.78,31.93224026]
[1737222676101,3.9538,252.93,252.75,15.817735]
[1737222676102,31.93224026,252.86,252.76,31.93224026]
[1737222676490,31.93224026,252.92,252.82,31.93224026]
[1737222676700,31.93224026,252.9,252.8,31.93224026]
[1737222677014,31.93224026,252.94,252.84,31.93224026]
[1737222677692,23.776884,252.93,252.84,31.93224026]
[1737222679315,31.93224026,253.05,252.92,31.93224026]
[1737222679509,31.93224026,253.09,252.97,31.93224026]
[1737222679686,31.93224026,253.07,252.95,31.93224026]
[1737222679887,31.93224026,252.99,252.89,31.93224026]
[1737222680190,31.93224026,252.99,252.72,31.93224026]
[1737222680191,23.776884,252.96,252.87,31.93224026]
[1737222680393,31.93224026,252.95,252.85,31.93224026]
[1737222680794,23.776884,252.94,252.85,31.93224026]
[1737222681191,23.776884,252.94,252.8,0.03]
[1737222681192,31.99524026,252.92,252.83,31.93224026]
[1737222681392,31.99524026,252.92,252.81,31.93224026]
[1737222681693,31.99524026,252.92,252.83,31.93224026]
[1737222682807,23.776884,252.91,252.83,31.93224026]
[1737222683110,0.063,252.92,252.86,31.93224026]
[1737222683616,0.063,252.92,252.84,31.93224026]
[1737222683993,0.063,252.92,252.9,31.93224026]
[1737222684502,0.063,252.92,252.88,31.93224026]
[1737222684905,0.063,252.92,252.9,31.93224026]
[1737222685207,0.063,252.92,252.91,0.59295409]
[1737222686990,0.063,252.92,252.91,0.59296028]
[1737222687611,0.063,252.92,252.9,31.93224026]
[1737222687797,0.063,252.92,252.8,0.03]
[1737222687798,0.063,252.92,252.88,31.93224026]
[1737222688121,0.063,252.92,252.8,0.03]
[1737222688122,0.063,252.92,252.86,31.93224026]
[1737222688302,0.063,252.92,252.91,31.93224026]
[1737222688924,0.063,253.18,252.92,23.776884]
[1737222689223,0.063,253.18,253.15,31.93224026]
[1737222689695,31.93224026,253.16,253.05,31.93224026]
[1737222689896,31.93224026,253.08,252.99,0.59257243]
[1737222690109,31.93224026,253.06,252.95,31.93224026]
[1737222690401,31.93224026,253.1,252.99,31.93224026]
[1737222690597,31.93224026,253.06,252.96,31.93224026]
[1737222690901,23.776884,253.05,252.96,31.93224026]
[1737222691100,23.776884,253.07,252.96,31.93224026]
[1737222691306,23.776884,253.07,252.98,31.93224026]
[1737222692312,31.93224026,253.1,253.0,31.93224026]
[1737222692622,0.063,253.18,253.08,31.93224026]
[1737222692799,0.063,253.18,253.16,31.93224026]
[1737222693713,0.063,253.18,253.14,31.93224026]
[1737222693907,0.063,253.18,253.16,31.93224026]
[1737222694108,0.063,253.32,253.17,32.52448801]
[1737222694307,0.063,253.32,253.25,31.93224026]
[1737222694513,0.063,253.32,253.23,31.93224026]
[1737222694824,0.063,253.32,253.31,31.93224026]
[1737222695515,0.063,253.32,253.29,31.93224026]
[1737222695724,0.063,253.32,253.27,31.93224026]
[1737222696313,0.063,253.32,253.21,31.93224026]
[1737222696527,23.776884,253.27,253.14,0.59220034]
[1737222696706,23.776884,253.27,253.17,31.93224026]
[1737222696907,23.776884,253.23,253.14,31.93224026]
[1737222697120,0.063,253.32,253.22,31.93224026]
[1737222697308,0.063,253.32,253.25,31.93224026]
[1737222697700,23.839884,253.32,253.25,31.93224026]
[1737222698100,23.839884,253.32,253.21,31.93224026]
[1737222698319,23.776884,253.3,253.21,31.93224026]
[1737222698922,23.776884,253.28,253.19,31.93224026]
[1737222699430,31.93224026,253.27,253.17,31.93224026]
[1737222699608,23.776884,253.26,253.15,31.93224026]
[1737222700413,31.93224026,253.18,253.09,31.93224026]
[1737222700619,23.776884,253.17,253.09,31.93224026]
[1737222700825,31.93224026,253.18,253.09,31.93224026]
[1737222701019,23.776884,253.15,253.05,31.93224026]
[1737222701332,23.776884,253.15,252.99,0.59267553]
[1737222701526,23.776884,253.15,253.05,31.93224026]
[1737222701826,31.93224026,253.12,253.03,31.93224026]
[1737222702029,31.93224026,253.12,253.01,31.93224026]
[1737222702331,31.93224026,253.14,253.03,31.93224026]
[1737222702516,31.93224026,253.14,253.01,31.93224026]
[1737222702517,31.93224026,253.12,253.01,31.93224026]
[1737222702833,3.9504,253.14,252.93,0.59282772]
[1737222702834,31.93224026,253.14,253.05,31.93224026]
[1737222703020,23.776884,253.13,253.05,31.93224026]
[1737222703219,4.3313,253.21,253.12,31.93224026]
[1737222703414,4.3313,253.21,253.15,31.93224026]
[1737222703610,5.72870153,253.27,253.15,31.93224026]
[1737222704235,31.93224026,253.26,253.15,31.93224026]
[1737222705239,0.063,253.32,253.24,31.93224026]
[1737222705535,0.063,253.32,253.28,31.93224026]
[1737222705828,0.063,253.32,253.24,31.93224026]
[1737222706008,0.063,253.32,253.26,31.93224026]
[1737222706205,31.99524026,253.32,253.22,31.93224026]
[1737222706535,35.94294026,253.32,253.22,31.93224026]
[1737222706712,31.93224026,253.25,253.15,31.93224026]
[1737222707027,23.776884,253.2,253.11,31.93224026]
[1737222707221,23.776884,253.18,253.09,31.93224026]
[1737222707611,23.776884,253.14,253.05,31.93224026]
[1737222708437,27.727284,253.14,253.05,31.93224026]
[1737222708608,27.727284,253.14,252.83,12.7925]
[1737222708609,31.93224026,253.07,252.97,31.93224026]
[1737222708814,23.776884,252.98,252.89,31.93224026]
[1737222709026,55.70912426,252.93,252.85,31.93224026]
[1737222709204,55.70912426,252.93,252.8,0.03]
[1737222709205,23.776884,252.92,252.8,0.03]
[1737222709411,23.776884,252.88,252.8,0.03]
[1737222709714,23.776884,252.84,252.8,0.03]
[1737222710017,31.93224026,252.89,252.8,0.03]
[1737222710225,31.93224026,252.85,252.8,0.03]
[1737222710420,23.776884,252.84,252.8,0.03]
[1737222710624,23.776884,252.86,252.8,0.03]
[1737222711442,31.93224026,252.87,252.8,0.03]
[1737222711617,35.95744026,252.94,252.84,31.93224026]
[1737222711933,38.63224026,252.97,252.86,31.93224026]
[1737222713337,23.776884,252.96,252.86,31.93224026]
[1737222713910,23.776884,252.91,252.82,31.93224026]
[1737222714306,23.776884,252.87,252.8,0.03]
[1737222715034,27.731584,252.87,252.8,0.03]
[1737222715412,23.776884,252.87,252.8,0.03]
[1737222715829,23.776884,252.82,252.8,0.03]
[1737222716029,20.0,252.77,252.66,31.96224026]
[1737222716237,23.776884,252.72,252.66,0.03]
[1737222716936,27.733784,252.72,252.66,0.03]
[1737222717814,3.9567,252.74,252.66,0.03]
[1737222718009,27.733584,252.74,252.66,0.03]
[1737222718235,55.70912426,252.67,252.66,0.03]
[1737222718842,23.776884,252.67,252.66,0.03]
[1737222719134,3.9554,252.82,252.66,31.96224026]
[1737222719339,31.93224026,252.87,252.78,31.93224026]
[1737222719635,31.93224026,252.89,252.8,31.93224026]
[1737222719839,3.9535,252.94,252.86,31.93224026]
[1737222720011,31.93224026,252.96,252.86,31.93224026]
[1737222720411,35.88544026,252.96,252.86,31.93224026]
[1737222720710,31.93224026,252.97,252.86,31.93224026]
[1737222721031,31.93224026,253.05,252.96,31.93224026]
[1737222721339,31.93224026,253.05,252.94,31.93224026]
[1737222721511,31.93224026,253.03,252.94,31.93224026]
[1737222721714,31.93224026,253.03,252.87,0.59314938]
[1737222721925,31.93224026,253.03,252.92,31.93224026]
[1737222722331,3.9522,253.02,252.92,31.93224026]
[1737222722539,3.9522,253.02,252.87,0.59314938]
[1737222722540,31.93224026,253.05,252.94,31.93224026]
[1737222722913,23.776884,253.04,252.94,31.93224026]
[1737222723122,31.93224026,253.05,252.96,31.93224026]
[1737222725842,31.93224026,253.03,252.94,31.93224026]
[1737222726138,31.93224026,253.03,252.92,31.93224026]
[1737222726618,23.776884,253.04,252.94,31.93224026]
[1737222727019,27.728784,253.04,252.94,31.93224026]
[1737222727224,27.728784,253.04,252.9,31.93224026]
[1737222727225,23.776884,253.0,252.9,31.93224026]
[1737222727424,31.93224026,253.07,252.96,31.93224026]
[1737222727936,31.93224026,253.14,253.02,31.93224026]
[1737222728130,31.93224026,253.16,253.05,31.93224026]
[1737222728332,31.93224026,253.16,252.98,31.93224026]
[1737222728333,31.93224026,253.2,253.09,31.93224026]
[1737222728628,31.93224026,253.26,253.15,31.93224026]
[1737222728819,3.9483,253.28,253.09,31.93224026]
[1737222729023,31.93224026,253.14,253.05,31.93224026]
[1737222729225,31.93224026,253.16,253.07,31.93224026]
[1737222729530,23.776884,253.1,253.01,31.93224026]
[1737222729737,23.776884,253.1,253.03,31.93224026]
[1737222730049,31.93224026,253.15,253.05,31.93224026]
[1737222730230,23.776884,253.12,253.01,31.93224026]
[1737222730423,23.776884,253.1,252.99,31.93224026]
[1737222730748,31.93224026,253.13,253.03,31.93224026]
[1737222730927,31.93224026,253.09,252.99,31.93224026]
[1737222731135,23.776884,253.06,252.97,31.93224026]
[1737222731332,23.776884,253.06,252.8,0.03]
[1737222731333,23.776884,253.0,252.91,31.93224026]
[1737222731825,31.93224026,253.05,252.95,31.93224026]
[1737222732043,31.93224026,253.08,252.98,31.93224026]
[1737222732351,31.93224026,253.0,252.86,0.59292837]
[1737222732641,23.776884,252.96,252.87,31.93224026]
[1737222732846,31.93224026,252.95,252.85,31.93224026]
[1737222733220,31.93224026,252.95,252.83,31.93224026]
[1737222733448,31.93224026,252.97,252.85,31.93224026]
[1737222733622,31.93224026,252.97,252.87,31.93224026]
[1737222733937,23.776884,252.95,252.84,31.93224026]
[1737222734141,23.776884,252.92,252.84,31.93224026]
[1737222734742,3.9519,253.04,252.91,31.93224026]
[1737222734945,31.93224026,253.08,252.97,31.93224026]
[1737222735440,31.93224026,253.11,253.01,31.93224026]
[1737222735819,31.93224026,253.09,252.99,31.93224026]
[1737222736019,31.93224026,253.09,252.88,0.59287333]
[1737222736020,31.93224026,253.11,253.01,31.93224026]
[1737222736748,31.99524026,253.14,253.03,31.93224026]
[1737222736951,0.063,253.14,253.11,31.93224026]
[1737222737128,0.063,253.14,253.09,31.93224026]
[1737222737324,0.063,253.14,252.98,31.93224026]
[1737222737325,0.063,253.14,253.11,31.93224026]
[1737222737630,0.063,253.14,253.13,31.93224026]
[1737222738151,0.063,253.14,253.13,56.30148552]
[1737222738521,4.8336761,253.27,253.14,23.776884]
[1737222738724,4.8336761,253.27,253.26,31.93224026]
[1737222738926,4.8336761,253.27,253.24,31.93224026]
[1737222739347,4.8336761,253.27,253.21,31.93224026]
[1737222739555,4.8336761,253.27,253.15,0.59229602]
[1737222739852,4.8336761,253.27,253.26,31.93224026]
[1737222740055,0.063,253.32,253.26,31.93224026]
[1737222740554,0.063,253.32,253.13,0.59222965]
[1737222740757,31.99524026,253.32,253.22,31.93224026]
[1737222740943,31.93224026,253.28,253.18,31.93224026]
[1737222741127,23.776884,253.25,253.16,31.93224026]
[1737222741465,23.776884,253.23,253.14,31.93224026]
[1737222742446,31.93224026,253.28,253.16,31.93224026]
[1737222742837,23.776884,253.27,253.16,31.93224026]
[1737222743040,23.776884,253.27,253.2,31.93224026]
[1737222743429,23.776884,253.29,253.2,31.93224026]
[1737222743630,23.776884,253.27,253.18,31.93224026]
[1737222744130,3.9479,253.3,253.12,0.59235649]
[1737222744131,23.776884,253.21,253.12,31.93224026]
[1737222744326,23.776884,253.19,253.1,31.93224026]
[1737222744559,23.776884,253.15,253.06,31.93224026]
[1737222744858,31.93224026,253.18,253.08,31.93224026]
[1737222745040,31.93224026,253.24,253.14,31.93224026]
[1737222745227,0.063,253.32,253.23,31.93224026]
[1737222745426,0.063,253.32,253.3,31.93224026]
[1737222745748,0.063,253.32,253.31,0.5920353]
[1737222745952,0.063,253.32,253.3,31.93224026]
[1737222746824,0.063,253.32,253.31,0.59208594]
[1737222747627,0.063,253.4,253.32,23.776884]
[1737222747838,0.063,253.4,253.39,31.93224026]
[1737222750042,0.063,253.4,253.37,31.93224026]
[1737222750245,0.063,253.4,253.35,31.93224026]
[1737222750660,0.063,253.4,253.24,0.59190365]
[1737222750958,0.063,253.4,253.39,31.93224026]
[1737222752162,0.063,253.4,253.37,31.93224026]
[1737222753243,0.063,253.4,253.26,0.59201959]
[1737222753451,0.063,253.4,253.35,31.93224026]
[1737222754143,23.839884,253.4,253.31,31.93224026]
[1737222754444,23.776884,253.38,253.29,31.93224026]
[1737222754641,23.776884,253.36,253.27,31.93224026]
[1737222755448,31.93224026,253.39,253.29,31.93224026]
[1737222755643,20.0,253.34,253.25,31.93224026]
[1737222755974,23.776884,253.25,253.15,31.93224026]
[1737222756139,23.776884,253.21,253.13,31.93224026]
[1737222756344,23.776884,253.21,252.98,31.93224026]
[1737222756345,23.776884,253.17,253.07,31.93224026]
[1737222756544,23.776884,253.15,253.07,31.93224026]
[1737222757248,27.727184,253.15,253.05,31.93224026]
[1737222757459,12.7634,253.44,253.14,31.93224026]
[1737222757651,31.93224026,253.39,253.28,31.93224026]
[1737222757862,31.93224026,253.39,253.15,0.59227683]
[1737222757863,35.96184026,253.42,253.3,31.93224026]
[1737222758060,4.0296,253.42,253.34,31.93224026]
[1737222758368,31.93224026,253.46,253.34,31.93224026]
[1737222758670,31.93224026,253.46,253.25,0.59212408]
[1737222758671,31.93224026,253.38,253.26,31.93224026]
[1737222759059,31.93224026,253.44,253.31,31.93224026]
[1737222759249,3.9459,253.43,253.33,31.93224026]
[1737222759444,31.93224026,253.42,253.33,31.93224026]
[1737222759662,31.93224026,253.45,253.35,31.93224026]
[1737222759850,31.93224026,253.47,253.37,31.93224026]
[1737222760048,31.93224026,253.49,253.37,31.93224026]
[1737222760562,4.0296,253.51,253.39,31.93224026]
[1737222760870,20.0,253.44,253.35,31.93224026]
[1737222761054,23.776884,253.43,253.35,31.93224026]
[1737222761457,23.776884,253.43,253.33,31.93224026]
[1737222761658,31.93224026,253.47,253.35,31.93224026]
[1737222761961,23.776884,253.46,253.35,31.93224026]
[1737222762379,4.0296,253.51,253.39,31.93224026]
[1737222762545,35.96184026,253.51,253.39,31.93224026]
[1737222762742,31.93224026,253.49,253.39,31.93224026]
[1737222763258,23.776884,253.46,253.37,31.93224026]
[1737222764846,0.063,253.58,253.39,55.70912426]
[1737222765054,0.063,253.58,253.4,23.776884]
[1737222765270,0.063,253.58,253.53,31.93224026]
[1737222765946,0.063,253.58,253.57,31.93224026]
[1737222766668,0.063,253.58,253.57,63.86448052]
[1737222766852,0.063,253.59,253.57,63.86448052]
[1737222767053,0.063,253.59,253.58,0.59123096]
[1737222767969,0.063,253.59,253.55,31.93224026]
[1737222768472,0.063,253.59,253.58,31.93224026]
[1737222768952,0.063,253.59,253.56,31.93224026]
[1737222769568,0.063,253.59,253.58,31.93224026]
[1737222769777,0.063,253.59,253.58,63.86448052]
[1737222770081,0.063,253.66,253.58,63.86448052]
[1737222770369,0.063,253.66,253.65,31.93224026]
[1737222772066,0.063,253.66,253.65,32.52347323]
[1737222773358,0.063,253.73,253.65,32.52347323]
[1737222773570,0.063,253.73,253.72,31.93224026]
[1737222775045,0.063,253.73,253.72,30.94092419]
[1737222776572,0.063,253.73,253.72,86.65004845]
[1737222776869,31.93224026,253.94,253.72,62.87316445]
[1737222777170,23.776884,253.93,253.84,31.93224026]
[1737222777471,31.93224026,253.88,253.78,31.93224026]
[1737222777661,31.93224026,253.94,253.84,31.93224026]
[1737222777861,35.87024026,253.94,253.77,0.59085914]
[1737222778057,31.93224026,253.92,253.82,31.93224026]
[1737222778274,35.87024026,253.94,253.84,31.93224026]
[1737222778451,31.93224026,253.92,253.82,31.93224026]
[1737222778658,31.93224026,253.95,253.85,31.93224026]
[1737222779176,27.714784,253.94,253.85,31.93224026]
[1737222779773,31.93224026,253.97,253.87,31.93224026]
[1737222780464,31.93224026,253.9,253.8,31.93224026]
[1737222780665,31.93224026,253.95,253.84,31.93224026]
[1737222780854,31.93224026,253.93,253.82,31.93224026]
[1737222781052,23.776884,253.9,253.82,31.93224026]
[1737222781522,31.93224026,253.89,253.8,31.93224026]
[1737222781792,31.93224026,253.93,253.82,31.93224026]
[1737222781990,31.93224026,253.93,253.84,31.93224026]
[1737222783064,3.9382,253.92,253.84,31.93224026]
[1737222783370,55.70912426,253.91,253.8,31.93224026]
[1737222784069,23.776884,253.88,253.8,31.93224026]
[1737222784379,23.776884,253.88,253.78,31.93224026]
[1737222784767,31.93224026,253.87,253.78,31.93224026]
[1737222785083,23.776884,253.79,253.7,31.93224026]
[1737222785294,23.776884,253.74,253.64,31.93224026]
[1737222785496,31.93224026,253.71,253.62,31.93224026]
[1737222785795,23.776884,253.64,253.55,31.93224026]
[1737222785996,31.93224026,253.58,253.48,31.93224026]
[1737222786180,31.93224026,253.56,253.38,0.59163724]
[1737222786381,43.81224026,253.76,253.38,0.59163724]
[1737222786382,31.93224026,253.6,253.5,31.93224026]
[1737222786788,31.93224026,253.64,253.55,31.93224026]
[1737222786983,38.55224026,253.66,253.57,31.93224026]
[1737222787182,6.62,253.66,253.57,31.93224026]
[1737222787391,23.776884,253.63,253.55,31.93224026]
[1737222787598,31.93224026,253.72,253.62,31.93224026]
[1737222787792,45.14804026,253.79,253.69,31.93224026]
[1737222788097,35.87254026,253.79,253.69,31.93224026]
[1737222788284,31.93224026,253.79,253.69,31.93224026]
[1737222788486,31.93224026,253.79,253.63,31.93224026]
[1737222788487,31.93224026,253.79,253.71,31.93224026]
[1737222788801,20.0,253.76,253.68,31.93224026]
[1737222789305,35.87254026,253.79,253.68,31.93224026]
[1737222789804,23.776884,253.74,253.64,31.93224026]
[1737222790111,23.776884,253.7,253.6,31.93224026]
[1737222790295,31.93224026,253.73,253.62,31.93224026]
[1737222790485,35.70524026,253.77,253.66,31.93224026]
[1737222790685,23.776884,253.76,253.66,31.93224026]
[1737222790881,31.93224026,253.75,253.66,31.93224026]
[1737222791087,35.70524026,253.77,253.66,31.93224026]
[1737222791305,23.776884,253.76,253.68,31.93224026]
[1737222791478,3.773,253.77,253.68,31.93224026]
[1737222791685,5.21202709,253.91,253.76,31.93224026]
[1737222791888,31.93224026,253.86,253.76,31.93224026]
[1737222792407,31.93224026,253.88,253.78,31.93224026]
[1737222792889,23.776884,253.87,253.76,31.93224026]
[1737222793201,23.776884,253.85,253.76,31.93224026]
[1737222793403,23.776884,253.81,253.72,31.93224026]
[1737222793804,31.96224026,253.89,253.68,0.063]
[1737222793805,31.93224026,253.84,253.74,31.93224026]
[1737222793999,3.9687,253.89,253.76,31.43224026]
[1737222794188,31.93224026,253.88,253.76,31.43224026]
[1737222794389,31.93224026,253.88,253.78,31.93224026]
[1737222795201,31.93224026,253.88,253.68,0.65413012]
[1737222795386,0.03,253.89,253.8,31.93224026]
[1737222795582,0.03,253.89,253.82,31.93224026]
[1737222796184,0.03,253.89,253.76,31.93224026]
[1737222796185,0.03,253.89,253.84,31.93224026]
[1737222796595,0.03,253.89,253.88,31.93224026]
[1737222796804,0.03,253.89,253.86,31.93224026]
[1737222797002,0.03,253.89,253.84,31.93224026]
[1737222798104,35.48364026,254.02,253.78,31.93224026]
[1737222798105,31.93224026,253.88,253.78,31.93224026]
[1737222798420,31.93224026,253.85,253.75,31.93224026]
[1737222798792,31.93224026,253.83,253.73,31.93224026]
[1737222798999,31.93224026,253.86,253.75,31.93224026]
[1737222799510,31.93224026,253.82,253.68,0.063]
[1737222799711,31.93224026,253.81,253.71,31.93224026]
[1737222800113,31.93224026,253.83,253.71,31.93224026]
[1737222800301,23.776884,253.8,253.71,31.93224026]
[1737222800820,31.93224026,253.83,253.73,31.93224026]
[1737222801023,23.776884,253.82,253.71,31.93224026]
[1737222801319,31.93224026,253.81,253.71,31.93224026]
[1737222801506,23.776884,253.79,253.71,31.93224026]
[1737222802017,31.93224026,253.76,253.68,0.063]
[1737222802218,31.93224026,253.8,253.69,31.93224026]
[1737222802392,23.776884,253.75,253.68,0.063]
[1737222802593,23.776884,253.69,253.68,0.063]
[1737222803009,31.93224026,253.73,253.62,31.93224026]
[1737222803211,31.93224026,253.71,253.62,31.93224026]
[1737222803600,31.93224026,253.73,253.62,31.93224026]
[1737222804103,3.5514,253.76,253.68,31.93224026]
[1737222804406,31.93224026,253.83,253.72,31.93224026]
[1737222804621,31.93224026,253.85,253.74,31.93224026]
[1737222804924,31.93224026,253.85,253.76,31.93224026]
[1737222805127,31.93224026,253.87,253.76,31.93224026]
[1737222805323,31.93224026,253.87,253.78,31.93224026]
[1737222806010,31.93224026,253.87,253.76,31.93224026]
[1737222806397,3.5514,253.88,253.76,31.93224026]
[1737222806398,31.93224026,253.85,253.76,31.93224026]
[1737222806597,31.93224026,253.85,253.74,31.93224026]
[1737222807018,23.776884,253.84,253.74,31.93224026]
[1737222807228,23.776884,253.82,253.72,31.93224026]
[1737222809807,23.776884,253.8,253.72,31.93224026]
[1737222810209,2.92423655,253.81,253.78,31.93224026]
[1737222811027,2.92423655,253.81,253.76,31.93224026]
[1737222811339,27.716084,253.86,253.76,31.93224026]
[1737222811513,23.776884,253.84,253.76,31.93224026]
[1737222812619,2.92615018,253.83,253.76,31.93224026]
[1737222813838,2.92615018,253.82,253.74,31.93224026]
[1737222814133,23.776884,253.74,253.66,0.063]